fUST/lending_fUST_20240519
["ID","MTS","AMOUNT","RATE_DAILY","PERIOD"]
[327478952,1716103880593,-321.30385843,0.00025,2]
[327478953,1716103880603,-160.0,0.00025,2]
[327478954,1716103880612,-9053.48592055,0.00025,30]
[327478955,1716103880621,-154.84515485,0.00025,2]
[327478956,1716103880632,-11077.27489812,0.00025,30]
[327478957,1716103880641,-150.0,0.00025,2]
[327478958,1716103880651,-154.36712319,0.00025064,2]
[327478959,1716103880660,-154.36712319,0.00025131,2]
[327478960,1716103880670,-154.36712319,0.00025167,2]
[327478961,1716103880680,-154.36712319,0.00025217,2]
[327478962,1716103880690,-154.36712319,0.00025266,2]
[327478963,1716103880700,-154.36712319,0.0002528,2]
[327478964,1716103880709,-154.36712319,0.00025323,2]
[327478965,1716103880720,-154.36712319,0.00025416,2]
[327478966,1716103880730,-66293.77321492,0.00025484,2]
[327478967,1716103880739,-155.98092403,0.00025619,2]
[327478968,1716103880749,-620.00000027,0.00025868,2]
[327478969,1716103880759,-154.36712319,0.00025894,2]
[327478970,1716103880768,-154.36712319,0.00025909,2]
[327478971,1716103880778,-154.36712319,0.00025926,2]
[327478972,1716103880788,-154.36712319,0.00025957,2]
[327478973,1716103880798,-1000.0,0.00026,26]
[327478974,1716103880807,-1956.04900915,0.00026,2]
[327478975,1716103880817,-4227.47577997,0.00026,2]
[327478976,1716103880827,-154.36712319,0.00026166,2]
[327478977,1716103880837,-160.74841057,0.00026178,2]
[327478978,1716103880847,-500.0,0.000263,2]
[327478979,1716103880856,-154.36712319,0.00026316,2]
[327478980,1716103880866,-321.932428,0.00026388,2]
[327478981,1716103880875,-2000.0,0.000264,30]
[327478982,1716103880886,-253.49,0.000265,2]
[327478983,1716103880895,-155.47129187,0.000265,2]
[327478984,1716103880904,-154.84515485,0.000265,2]
[327478985,1716103880915,-1458.25576745,0.000265,2]
[327478986,1716103880924,-251.75466712,0.000265,2]
[327478987,1716103880934,-227.38945926,0.000265,2]
[327478988,1716103880943,-16108.00888911,0.000265,2]
[327478989,1716103880952,-106778.07388309,0.000265,7]
[327478990,1716103880962,-154.3671233,0.00026549,2]
[327478991,1716103880972,-646.55919591,0.00027,2]
[327478992,1716103880981,-930.99234305,0.00027106,12]
[327478993,1716103880991,-460.61582416,0.00027397,20]
[327478994,1716103881000,-154.94456338,0.000274,2]
[327478995,1716103881011,-806.00520308,0.000275,17]
[327478996,1716103881020,-169.843353,0.00027671,2]
[327478997,1716103881030,-169.843353,0.00027671,21]
[327478998,1716103881039,-169.843353,0.00027671,41]
[327478999,1716103881049,-169.843353,0.00027671,61]
[327479000,1716103881058,-169.843353,0.00027671,80]
[327479001,1716103881068,-169.843353,0.00027671,100]
[327479002,1716103881077,-169.843353,0.00027671,120]
[327479003,1716103881086,-765.38138909,0.00028,2]
[327479004,1716103881096,-163.10622686,0.00028,7]
[327479005,1716103881109,-1000.0,0.00028,28]
[327479006,1716103881118,-416.0,0.00028,2]
[327479007,1716103881128,-298.42651303,0.00028,2]
[327479008,1716103881140,-155.98092403,0.00028713,2]
[327479009,1716103881149,-150.5,0.0002885,35]
[327479010,1716103881158,-150.5,0.0002885,35]
[327479011,1716103881171,-150.5,0.0002885,35]
[327479012,1716103881180,-150.5,0.0002886,35]
[327479013,1716103881190,-150.5,0.0002886,35]
[327479014,1716103881199,-150.5,0.0002886,35]
[327479015,1716103881208,-150.5,0.0002887,35]
[327479016,1716103881218,-150.5,0.0002887,35]
[327479017,1716103881227,-150.5,0.0002887,35]
[327479018,1716103881237,-3347.49908061,0.000289,2]
[327479019,1716103881246,-166.666666,0.00028986,2]
[327479020,1716103881256,-300.0,0.00029,2]
[327479021,1716103881266,-1000.0,0.000293,30]
[327479022,1716103881276,-154.7215013,0.0003,4]
[327479023,1716103881285,-662.82786429,0.0003,30]
[327479024,1716103881294,-154.7215013,0.0003,4]
[327479025,1716103881303,-300.0,0.0003,2]
[327479026,1716103881313,-160.0,0.0003,2]
[327479027,1716103881322,-1000.0,0.0003,30]
[327479028,1716103881331,-694.40413427,0.0003,2]
[327479029,1716103881341,-41473.0,0.0003,2]
[327479030,1716103881351,-260.0,0.0003,2]
[327479031,1716103881360,-750.0,0.0003031,2]
[327479032,1716103881369,-300.0,0.00031,4]
[327479033,1716103881379,-1499.861547,0.00031,6]
[327479034,1716103881389,-173.89818084,0.00031,2]
[327479035,1716103881397,-173.89818084,0.00031,2]
[327479036,1716103881406,-173.89818084,0.00031,2]
[327479037,1716103881415,-173.89818084,0.00031,2]
[327479038,1716103881425,-173.89818084,0.00031,2]
[327479039,1716103881434,-173.89818084,0.00031,2]
[327479040,1716103881444,-173.89818084,0.00031,2]
[327479041,1716103881454,-173.89818084,0.00031,2]
[327479042,1716103881464,-173.89818084,0.00031,2]
[327479043,1716103881474,-173.89818084,0.00031,2]
[327479044,1716103881483,-173.89818084,0.00031,2]
[327479045,1716103881492,-173.89818084,0.00031,2]
[327479046,1716103881503,-173.89818084,0.00031,2]
[327479047,1716103881513,-173.89818084,0.00031,2]
[327479048,1716103881523,-173.89818084,0.00031,2]
[327479049,1716103881532,-173.89818084,0.00031,2]
[327479050,1716103881542,-173.89818084,0.00031,2]
[327479051,1716103881551,-173.89818084,0.00031,2]
[327479052,1716103881561,-173.89818084,0.00031,2]
[327479053,1716103881570,-173.89818,0.00031,2]
[327479054,1716103881579,-155.98092403,0.00031806,2]
[327479055,1716103881589,-640.66243413,0.00032,4]
[327479056,1716103881601,-300.0,0.00032,5]
[327479057,1716103881610,-1000.0,0.00032,32]
[327479058,1716103881620,-500.0,0.00032876,2]
[327479059,1716103881629,-500.0,0.00032876,2]
[327479060,1716103881640,-500.0,0.00032876,2]
[327479061,1716103881649,-614.8265463,0.00032876,2]
[327479062,1716103881658,-500.0,0.00032876,2]
[327479063,1716103881667,-500.0,0.00032876,2]
[327479064,1716103881676,-500.0,0.00032876,2]
[327479065,1716103881686,-500.0,0.00032876,2]
[327479066,1716103881695,-500.0,0.00032876,2]
[327479067,1716103881704,-500.0,0.00032876,2]
[327479068,1716103881714,-500.0,0.00032876,2]
[327479069,1716103881724,-500.0,0.00032876,2]
[327479070,1716103881733,-500.0,0.00032876,2]
[327479071,1716103881743,-500.0,0.00032876,2]
[327479072,1716103881752,-500.0,0.00032876,2]
[327479073,1716103881762,-172.46272982,0.00032876,2]
[327479074,1716103881772,-500.0,0.00032876,2]
[327479075,1716103881781,-650.0,0.00032876,2]
[327479076,1716103881791,-500.0,0.00032876,2]
[327479077,1716103881800,-317.63692312,0.00032876,2]
[327479078,1716103881810,-500.0,0.00032876,2]
[327479079,1716103881820,-500.0,0.00032876,2]
[327479080,1716103881830,-556.62058513,0.00032876,2]
[327479081,1716103881840,-210.13586289,0.00032876,2]
[327479082,1716103881851,-500.0,0.00032876,2]
[327479083,1716103881861,-500.0,0.00032876,2]
[327479084,1716103881871,-500.0,0.00032876,2]
[327479085,1716103881881,-500.0,0.00032876,2]
[327479086,1716103881891,-180.50641827,0.00032876,2]
[327479087,1716103881901,-500.0,0.00032876,2]
[327479088,1716103881911,-205.59486148,0.00032876,2]
[327479089,1716103881921,-500.0,0.00032876,2]
[327479090,1716103881930,-489.17380324,0.00032876,2]
[327479091,1716103881940,-500.0,0.00032876,2]
[327479092,1716103881950,-500.0,0.00032876,2]
[327479093,1716103881960,-298.87463034,0.00032876,2]
[327479094,1716103881969,-530.16502336,0.00032876,2]
[327479095,1716103881979,-500.0,0.00032876,2]
[327479096,1716103881989,-500.0,0.00032876,2]
[327479097,1716103881998,-500.0,0.00032876,2]
[327479098,1716103882008,-300.10536711,0.00032876,2]
[327479099,1716103882018,-365.88209152,0.00032876,2]
[327479100,1716103882027,-2813.76849842,0.00032876,2]
[327479101,1716103882038,-2813.76849842,0.00032876,2]
[327479102,1716103882048,-2813.76849842,0.00032876,2]
[327479103,1716103882057,-2813.76849842,0.00032876,2]
[327479104,1716103882067,-2813.76849842,0.00032876,2]
[327479105,1716103882077,-2813.76849842,0.00032876,2]
[327479106,1716103882087,-2813.76849842,0.00032876,2]
[327479107,1716103882097,-2813.76849842,0.00032876,2]
[327479108,1716103882107,-2813.76849842,0.00032876,2]
[327479109,1716103882116,-2813.76849842,0.00032876,2]
[327479110,1716103882127,-2813.76849842,0.00032876,2]
[327479111,1716103882138,-500.0,0.00032876,2]
[327479112,1716103882147,-293.68256613,0.00032876,2]
[327479113,1716103882157,-500.0,0.00032876,2]
[327479114,1716103882171,-500.0,0.00032876,2]
[327479115,1716103882181,-500.0,0.00032876,2]
[327479116,1716103882191,-159.00085422,0.00032876,2]
[327479117,1716103882201,-174.57652961,0.00032876,2]
[327479118,1716103882210,-521.34210316,0.00032876,2]
[327479119,1716103882220,-500.0,0.00032876,2]
[327479120,1716103882229,-500.0,0.00032876,2]
[327479121,1716103882240,-358.37072992,0.00032876,2]
[327479122,1716103882250,-500.0,0.00032876,2]
[327479123,1716103882260,-500.0,0.00032876,2]
[327479124,1716103882363,-500.0,0.00032876,2]
[327479125,1716103882373,-500.0,0.00032876,2]
[327479126,1716103882386,-500.0,0.00032876,2]
[327479127,1716103882396,-500.0,0.00032876,2]
[327479128,1716103882405,-553.22733208,0.00032876,2]
[327479129,1716103882414,-395.0,0.00032876,2]
[327479130,1716103882423,-500.0,0.00032876,2]
[327479131,1716103882432,-500.0,0.00032876,2]
[327479132,1716103882442,-1576.56467693,0.00032876,2]
[327479133,1716103882451,-380.79559867,0.00032876,2]
[327479134,1716103882460,-1576.56467693,0.00032876,2]
[327479135,1716103882469,-331.3328486,0.00032876,2]
[327479136,1716103882478,-500.0,0.00032876,2]
[327479137,1716103882488,-462.72236384,0.00032876,2]
[327479138,1716103882497,-1576.56467693,0.00032876,2]
[327479139,1716103882507,-378.86423555,0.00032876,2]
[327479140,1716103882516,-1576.56467693,0.00032876,2]
[327479141,1716103882526,-500.0,0.00032876,2]
[327479142,1716103882536,-585.11036165,0.00032876,2]
[327479143,1716103882546,-500.0,0.00032876,2]
[327479144,1716103882555,-500.0,0.00032876,2]
[327479145,1716103882565,-500.0,0.00032876,2]
[327479146,1716103882574,-500.0,0.00032876,2]
[327479147,1716103882584,-500.0,0.00032876,2]
[327479148,1716103882594,-500.0,0.00032876,2]
[327479149,1716103882603,-500.0,0.00032876,2]
[327479150,1716103882613,-387.27402165,0.00032876,2]
[327479151,1716103882623,-500.0,0.00032876,2]
[327479152,1716103882635,-500.0,0.00032876,2]
[327479153,1716103882645,-364.2926435,0.00032876,2]
[327479154,1716103882654,-864.84,0.00032876,2]
[327479155,1716103882663,-864.84,0.00032876,4]
[327479156,1716103882672,-864.84,0.00032876,6]
[327479157,1716103882682,-864.84,0.00032876,8]
[327479158,1716103882691,-864.84,0.00032876,10]
[327479159,1716103882700,-864.84,0.00032876,12]
[327479160,1716103882710,-864.84,0.00032876,14]
[327479161,1716103882719,-864.84,0.00032876,16]
[327479162,1716103882729,-864.84,0.00032876,18]
[327479163,1716103882739,-864.84,0.00032876,20]
[327479164,1716103882748,-864.84,0.00032876,22]
[327479165,1716103882758,-864.84,0.00032876,24]
[327479166,1716103882768,-864.84,0.00032876,26]
[327479167,1716103882778,-864.84,0.00032876,28]
[327479168,1716103882787,-864.84,0.00032876,30]
[327479169,1716103882797,-864.84,0.00032876,32]
[327479170,1716103882806,-864.84,0.00032876,34]
[327479171,1716103882816,-864.84,0.00032876,36]
[327479172,1716103882825,-864.84,0.00032876,38]
[327479173,1716103882835,-864.84,0.00032876,40]
[327479174,1716103882845,-864.84,0.00032876,42]
[327479175,1716103882854,-864.84,0.00032876,44]
[327479176,1716103882864,-864.84,0.00032876,46]
[327479177,1716103882873,-865.06559593,0.00032876,48]
[327479178,1716103882885,-1405.61979794,0.00033,4]
[327479179,1716103882894,-300.0,0.00033,7]
[327479180,1716103882905,-260.0,0.00033,2]
[327479181,1716103882915,-260.0,0.00033,2]
[327479182,1716103882925,-27591.6601,0.00033343,30]
[327479183,1716103882935,-227.33,0.00033525,35]
[327479184,1716103882944,-300.36,0.00033535,35]
[327479185,1716103882954,-225.17,0.00033535,35]
[327479186,1716103882963,-150.5,0.00033535,35]
[327479187,1716103882973,-321.932428,0.00033598,2]
[327479188,1716103882982,-150.5,0.0003377,35]
[327479189,1716103882992,-3063.0,0.0003377,35]
[327479190,1716103883001,-150.5,0.0003378,35]
[327479191,1716103883011,-3063.0,0.0003378,35]
[327479192,1716103883021,-246.5,0.0003379,35]
[327479193,1716103883031,-150.5,0.0003379,35]
[327479194,1716103883041,-3063.0,0.0003379,35]
[327479195,1716103883051,-200.0,0.00033797,120]
[327479196,1716103883061,-467.8908459,0.00034,4]
[327479197,1716103883071,-300.0,0.00034,9]
[327479198,1716103883080,-157104.3309667,0.00034,10]
[327479199,1716103883089,-1000.0,0.00034,34]
[327479200,1716103883098,-200.0,0.00034201,120]
[327479201,1716103883108,-28617.06053335,0.00034555,10]
[327479202,1716103883117,-2592.42,0.000346,6]
[327479203,1716103883127,-2018.45,0.0003466,6]
[327479204,1716103883138,-968.78,0.000348,60]
[327479205,1716103883148,-155.98092403,0.000349,2]
[327479206,1716103883158,-3063.0,0.0003496,35]
[327479207,1716103883171,-219.89,0.0003497,35]
[327479208,1716103883181,-3063.0,0.0003497,35]
[327479209,1716103883191,-3069.63,0.0003497,35]
[327479210,1716103883202,-3063.0,0.0003498,35]
[327479211,1716103883212,-551715.67546432,0.00034983,10]
[327479212,1716103883223,-387.74947677,0.00034983,2]
[327479213,1716103883232,-210.88919206,0.00034983,7]
[327479214,1716103883245,-160.0,0.00034983,30]
[327479215,1716103883255,-2905.86354295,0.00034983,7]
[327479216,1716103883265,-1199.54653065,0.00034983,34]
[327479217,1716103883275,-8575.22595144,0.00034983,4]
[327479218,1716103883285,-16058.8292489,0.00034983,30]
[327479219,1716103883295,-293573.96375773,0.00034983,120]
[327479220,1716103883305,-256.14533612,0.00034983,120]
[327479221,1716103883314,-1236.16479958,0.00034983,30]
[327479222,1716103883326,-516.0,0.00034983,2]
[327479223,1716103883342,-2929.66657411,0.00034983,30]
[327479224,1716103883358,-208.80187887,0.00034983,30]
[327479225,1716103883372,-381.19965512,0.00034983,30]
[327479226,1716103883388,-150.0,0.00034983,2]
[327479227,1716103883403,-154.85827216,0.00034983,2]
[327479228,1716103883418,-5753.23164417,0.00034983,5]
[327479229,1716103883434,-309.64390927,0.00034983,2]
[327479230,1716103883449,-43182.71570301,0.00034983,120]
[327479231,1716103883463,-521.0,0.00034983,120]
[327479232,1716103883480,-1523.59156873,0.00034983,120]
[327479233,1716103883494,-5000.0,0.00034983,120]
[327479234,1716103883506,-1221.12096993,0.00034983,2]
[327479235,1716103883519,-1807.68425859,0.00034983,35]
[327479236,1716103883532,-249.04834418,0.00034983,120]
[327479237,1716103883548,-980.07204452,0.00034983,2]
[327479238,1716103883562,-507.0,0.00034983,30]
[327479239,1716103883578,-507.0,0.00034983,30]
[327479240,1716103883591,-507.0,0.00034983,30]
[327479241,1716103883602,-507.0,0.00034983,30]
[327479242,1716103883616,-507.0,0.00034983,30]
[327479243,1716103883631,-507.0,0.00034983,30]
[327479244,1716103883646,-507.0,0.00034983,30]
[327479245,1716103883659,-507.0,0.00034983,30]
[327479246,1716103883673,-507.0,0.00034983,30]
[327479247,1716103883686,-510.96578502,0.00034983,30]
[327479248,1716103883697,-272.0,0.00034989,79]
[327479249,1716103883710,-12243.69319423,0.00035,4]
[327479250,1716103883724,-215.43086951,0.00035,4]
[327479251,1716103883737,-5941.8544989,0.00035,4]
[327479252,1716103883750,-300.0,0.00035,10]
[327479253,1716103883763,-21845.21406564,0.00035,2]
[327479254,1716103883777,-733.62,0.00035,60]
[327479255,1716103883791,-3635213.07033903,0.00035,30]
[327479256,1716103884025,-569.68509871,0.00016438,2]
[327479257,1716103884266,-4704.69490129,0.00016438,2]
[327479258,1716103884277,-5274.38,0.00016712,2]
[327479259,1716103884289,-1723.41,0.00020547,2]
[327479260,1716103884301,-1723.41,0.00020821,2]
[327479261,1716103884312,-729.07,0.00021643,2]
[327479262,1716103884323,-3567.06,0.00021917,2]
[327479263,1716103884335,-729.07,0.00021917,2]
[327479264,1716103884346,-3567.06,0.00022191,2]
[327479265,1716103884358,-729.07,0.00022191,2]
[327479266,1716103884371,-3567.06,0.00022465,2]
[327479267,1716103884382,-729.07,0.00022465,2]
[327479268,1716103884394,-16364786.92966097,0.00035,30]
[327479269,1716103884406,-1331.86827823,0.00035,7]
[327479270,1716103884418,-1332.001332,0.00035,7]
[327479271,1716103884430,-10450.24067,0.000354,12]
[327479272,1716103884442,-4132.612608,0.000354,24]
[327479273,1716103884453,-79819.631048,0.000354,12]
[327479274,1716103884465,-1530.73484089,0.00035455,14]
[327479275,1716103884476,-500.0,0.00035616,2]
[327479276,1716103884488,-500.0,0.00035616,2]
[327479277,1716103884500,-500.0,0.00035616,2]
[327479278,1716103884511,-614.79513134,0.00035616,2]
[327479279,1716103884523,-6250.0,0.00035616,120]
[327479280,1716103884534,-155.12542017,0.0003589,2]
[327479281,1716103884707,-1000.0,0.00036,36]
[327479282,1716103884723,-260.0,0.00036,2]
[327479283,1716103884733,-260.0,0.00036,2]
[327479284,1716103884742,-260.0,0.00036,2]
[327479285,1716103884751,-150.84915085,0.00036182,2]
[327479286,1716103884760,-750.0,0.00036236,2]
[327479287,1716103884770,-256.93332195,0.0003624,2]
[327479288,1716103884780,-301.6983017,0.0003679,4]
[327479289,1716103884790,-1777.02552887,0.00037,2]
[327479290,1716103884800,-1331.86827823,0.000371,7]
[327479291,1716103884809,-1332.001332,0.000371,7]
[327479292,1716103884820,-603.3966034,0.00037408,7]
[327479293,1716103884829,-166.345382,0.00037808,2]
[327479294,1716103884838,-225.000001,0.00037808,2]
[327479295,1716103884848,-209.8845433,0.00037808,2]
[327479296,1716103884857,-168.751948,0.00037808,2]
[327479297,1716103884867,-545.49703511,0.00038,2]
[327479298,1716103884876,-66662.59694724,0.00038,30]
[327479299,1716103884887,-1000.0,0.00038,38]
[327479300,1716103884896,-1000.0,0.00038356,2]
[327479301,1716103884905,-1000.0,0.00038356,2]
[327479302,1716103884915,-1000.0,0.00038356,2]
[327479303,1716103884924,-1013.46318863,0.00038356,2]
[327479304,1716103884935,-1000.0,0.00038434,4]
[327479305,1716103884944,-5000.0,0.000385,10]
[327479306,1716103884954,-3216.65676146,0.000385,60]
[327479307,1716103884963,-166.666666,0.00038804,2]
[327479308,1716103884973,-3626.28,0.00038904,4]
[327479309,1716103884983,-3626.28,0.00038904,4]
[327479310,1716103884992,-3626.28,0.00038904,4]
[327479311,1716103885002,-3626.28,0.00038904,4]
[327479312,1716103885012,-3626.28,0.00038904,4]
[327479313,1716103885022,-3626.28,0.00038904,4]
[327479314,1716103885031,-3626.28,0.00038904,4]
[327479315,1716103885041,-3626.28,0.00038904,4]
[327479316,1716103885050,-3626.28,0.00038904,4]
[327479317,1716103885060,-3626.28,0.00038904,4]
[327479318,1716103885070,-3626.28,0.00038904,4]
[327479319,1716103885082,-3626.28,0.00038904,4]
[327479320,1716103885092,-3626.28,0.00038904,4]
[327479321,1716103885102,-3626.28,0.00038904,4]
[327479322,1716103885111,-3626.28,0.00038904,4]
[327479323,1716103885121,-3626.28,0.00038904,4]
[327479324,1716103885131,-3626.28,0.00038904,4]
[327479325,1716103885142,-3626.28,0.00038904,4]
[327479326,1716103885152,-3626.28,0.00038904,4]
[327479327,1716103885163,-3626.28,0.00038904,4]
[327479328,1716103885176,-3626.28,0.00038904,4]
[327479329,1716103885190,-3626.28,0.00038904,4]
[327479330,1716103885199,-3626.28,0.00038904,4]
[327479331,1716103885210,-3626.44324214,0.00038904,4]
[327479332,1716103885219,-1026.0,0.00038952,105]
[327479333,1716103885229,-5018.71896399,0.00039,30]
[327479334,1716103885238,-260.0,0.00039,2]
[327479335,1716103885248,-260.0,0.00039,2]
[327479336,1716103885258,-260.0,0.00039,2]
[327479337,1716103885267,-1452.94721261,0.000392,11]
[327479338,1716103885277,-1453.09236218,0.000392,11]
[327479339,1716103885286,-104621.4609648,0.0003966,2]
[327479340,1716103885295,-42148.5390352,0.0003966,2]
[327479341,1716103885304,-5000.0,0.0004,31]
[327479342,1716103885313,-2000.0,0.0004,10]
[327479343,1716103885323,-4818.18938055,0.0004,2]
[327479344,1716103885332,-4000.32466495,0.0004,10]
[327479345,1716103885342,-201.28265715,0.0004,4]
[327479346,1716103885351,-1672.25662246,0.0004,2]
[327479347,1716103885361,-300.0,0.0004,5]
[327479348,1716103885370,-3068.58000137,0.0004,15]
[327479349,1716103885380,-73174.48632839,0.0004,7]
[327479350,1716103885391,-310.12260226,0.0004,120]
[327479351,1716103885400,-223781.25113857,0.0004,15]
[327479352,1716103885409,-503.0637714,0.0004,120]
[327479353,1716103885419,-1000.0,0.0004,120]
[327479354,1716103885428,-1000.0,0.0004,40]
[327479355,1716103885438,-273.11006476,0.0004,2]
[327479356,1716103885447,-396.89963083,0.0004,2]
[327479357,1716103885457,-5000.0,0.0004,14]
[327479358,1716103885466,-153.0,0.00040072,2]
[327479359,1716103885475,-153.0,0.00040072,2]
[327479360,1716103885485,-153.0,0.00040072,2]
[327479361,1716103885495,-153.0,0.00040072,2]
[327479362,1716103885505,-153.0,0.00040072,2]
[327479363,1716103885514,-153.0,0.00040072,2]
[327479364,1716103885524,-153.0,0.00040072,2]
[327479365,1716103885533,-153.0,0.00040072,2]
[327479366,1716103885543,-153.0,0.00040072,2]
[327479367,1716103885552,-153.0,0.00040072,2]
[327479368,1716103885562,-153.0,0.00040072,2]
[327479369,1716103885571,-153.0,0.00040072,2]
[327479370,1716103885582,-153.0,0.00040072,2]
[327479371,1716103885592,-153.0,0.00040072,2]
[327479372,1716103885602,-153.0,0.00040072,2]
[327479373,1716103885611,-291.2684803,0.00040346,2]
[327479374,1716103885620,-291.2684803,0.00040346,2]
[327479375,1716103885630,-291.2684803,0.00040346,2]
[327479376,1716103885641,-291.2684803,0.00040346,2]
[327479377,1716103885650,-291.2684803,0.00040346,2]
[327479378,1716103885659,-291.2684803,0.00040346,2]
[327479379,1716103885669,-164.0470306,0.00040346,2]
[327479380,1716103885678,-321.932428,0.00040808,2]
[327479381,1716103885688,-153.0,0.00040839,2]
[327479382,1716103885698,-153.0,0.00040839,2]
[327479383,1716103885707,-153.0,0.00040839,2]
[327479384,1716103885717,-153.0,0.00040839,2]
[327479385,1716103885726,-153.0,0.00040839,2]
[327479386,1716103885736,-153.0,0.00040839,2]
[327479387,1716103885746,-153.0,0.00040839,2]
[327479388,1716103885755,-153.0,0.00040839,2]
[327479389,1716103885765,-153.0,0.00040839,2]
[327479390,1716103885774,-153.0,0.00040839,2]
[327479391,1716103885783,-153.0,0.00040839,2]
[327479392,1716103885794,-153.0,0.00040839,2]
[327479393,1716103885803,-153.0,0.00040839,2]
[327479394,1716103885812,-153.0,0.00040839,2]
[327479395,1716103885821,-153.0,0.00040839,2]
[327479396,1716103885831,-153.0,0.00040839,2]
[327479397,1716103885841,-153.0,0.00040839,2]
[327479398,1716103885850,-153.0,0.00040839,2]
[327479399,1716103885859,-153.0,0.00040839,2]
[327479400,1716103885869,-153.0,0.00040839,2]
[327479401,1716103885879,-153.0,0.00040839,2]
[327479402,1716103885889,-153.0,0.00040839,2]
[327479403,1716103885899,-153.0,0.00040839,2]
[327479404,1716103885908,-153.0,0.00040839,2]
[327479405,1716103885918,-153.0,0.00040839,2]
[327479406,1716103885927,-153.0,0.00040839,2]
[327479407,1716103885936,-153.0,0.00040839,2]
[327479408,1716103885946,-153.0,0.00040839,2]
[327479409,1716103885956,-153.0,0.00040839,2]
[327479410,1716103885965,-153.0,0.00040839,2]
[327479411,1716103885976,-153.0,0.00040839,2]
[327479412,1716103885985,-153.0,0.00040839,2]
[327479413,1716103885995,-153.0,0.00040839,2]
[327479414,1716103886004,-153.0,0.00040839,2]
[327479415,1716103886014,-153.0,0.00040839,2]
[327479416,1716103886024,-153.0,0.00040839,2]
[327479417,1716103886034,-153.0,0.00040839,2]
[327479418,1716103886043,-153.0,0.00040839,2]
[327479419,1716103886053,-153.0,0.00040839,2]
[327479420,1716103886063,-153.0,0.00040839,2]
[327479421,1716103886072,-153.0,0.00040839,2]
[327479422,1716103886082,-153.0,0.00040839,2]
[327479423,1716103886091,-153.0,0.00040839,2]
[327479424,1716103886101,-153.0,0.00040839,2]
[327479425,1716103886110,-153.0,0.00040839,2]
[327479426,1716103886119,-155.10424982,0.00040914,120]
[327479427,1716103886128,-1215.99579568,0.00040978,50]
[327479428,1716103886138,-3856.0,0.00041,30]
[327479429,1716103886148,-607.79745709,0.00041095,120]
[327479430,1716103886158,-637.04507679,0.00041095,120]
[327479431,1716103886171,-1243.0994733,0.00041096,7]
[327479432,1716103886181,-178.6109188,0.00041096,2]
[327479433,1716103886190,-500.0,0.00041096,31]
[327479434,1716103886199,-500.0,0.00041096,31]
[327479435,1716103886210,-278.67992733,0.00041096,31]
[327479436,1716103886219,-153.0,0.00041168,2]
[327479437,1716103886229,-153.0,0.00041168,2]
[327479438,1716103886238,-10000.0,0.00041234,120]
[327479439,1716103886250,-153.0,0.00041263,2]
[327479440,1716103886259,-1452.94721261,0.000413,11]
[327479441,1716103886269,-1453.09236218,0.000413,11]
[327479442,1716103886278,-291.2684803,0.000414,2]
[327479443,1716103886288,-6250.0,0.00041553,120]
[327479444,1716103886298,-9496.0,0.00041729,120]
[327479445,1716103886307,-153.0,0.0004199,2]
[327479446,1716103886317,-153.0,0.0004199,2]
[327479447,1716103886326,-153.0,0.0004199,2]
[327479448,1716103886335,-153.0,0.0004199,2]
[327479449,1716103886344,-153.0,0.0004199,2]
[327479450,1716103886354,-153.0,0.0004199,2]
[327479451,1716103886363,-153.0,0.0004199,2]